[Event "Late-Titled-Tuesday-Blitz-May-14-2024"]
[Site "Chess.com"]
[Date "2024.05.14"]
[Round "9"]
[White "maximnovik"]
[Black "Evgeny81"]
[Result "1-0"]
[WhiteElo "2600"]
[BlackElo "2760"]
[TimeControl "180+1"]
[EndTime "15:43:51 PDT"]
[Termination "maximnovik won on time"]

1. e4 {[%clk 0:02:59.8]} 1... e6 {[%clk 0:03:00.3]} 2. d4 {[%clk 0:02:58.3]}
2... d5 {[%clk 0:03:01]} 3. e5 {[%clk 0:02:58.7]} 3... c5 {[%clk 0:03:00.5]} 4.
c3 {[%clk 0:02:59.3]} 4... Bd7 {[%clk 0:02:59]} 5. Nf3 {[%clk 0:02:58.9]} 5...
a6 {[%clk 0:02:58.7]} 6. Be2 {[%clk 0:02:49.9]} 6... Bb5 {[%clk 0:02:58.1]} 7.
O-O {[%clk 0:02:48.7]} 7... Nc6 {[%clk 0:02:55.6]} 8. dxc5 {[%clk 0:02:43.4]}
8... Bxe2 {[%clk 0:02:54.1]} 9. Qxe2 {[%clk 0:02:43.4]} 9... Bxc5 {[%clk
0:02:54.5]} 10. c4 {[%clk 0:02:32.6]} 10... Nge7 {[%clk 0:02:50.7]} 11. Nc3
{[%clk 0:02:31.3]} 11... O-O {[%clk 0:02:40.8]} 12. Rd1 {[%clk 0:02:30.8]} 12...
h6 {[%clk 0:02:32]} 13. cxd5 {[%clk 0:02:24.5]} 13... Nxd5 {[%clk 0:02:29.5]}
14. Nxd5 {[%clk 0:02:23.8]} 14... exd5 {[%clk 0:02:30.4]} 15. Be3 {[%clk
0:02:20.9]} 15... Qb6 {[%clk 0:02:20]} 16. Bxc5 {[%clk 0:02:13.7]} 16... Qxc5
{[%clk 0:02:20.9]} 17. Rac1 {[%clk 0:02:13.4]} 17... Qa5 {[%clk 0:02:21.1]} 18.
a3 {[%clk 0:02:13]} 18... Rad8 {[%clk 0:02:20.2]} 19. Nd4 {[%clk 0:02:04.2]}
19... Nxd4 {[%clk 0:02:12.3]} 20. Rxd4 {[%clk 0:02:03.9]} 20... Rfe8 {[%clk
0:02:12]} 21. f4 {[%clk 0:02:03.9]} 21... Rc8 {[%clk 0:02:04.7]} 22. Rcd1 {[%clk
0:02:03.8]} 22... Qb6 {[%clk 0:01:58.2]} 23. Qf2 {[%clk 0:02:01.8]} 23... Red8
{[%clk 0:01:49.9]} 24. f5 {[%clk 0:01:59.8]} 24... Re8 {[%clk 0:01:41.4]} 25.
Rxd5 {[%clk 0:00:59.6]} 25... Qxf2+ {[%clk 0:01:42.3]} 26. Kxf2 {[%clk
0:00:59.9]} 26... Rc2+ {[%clk 0:01:41.3]} 27. Kf3 {[%clk 0:00:58.6]} 27... Rxb2
{[%clk 0:01:41.2]} 28. R1d3 {[%clk 0:00:58.9]} 28... b5 {[%clk 0:01:30.5]} 29.
h4 {[%clk 0:00:55.2]} 29... a5 {[%clk 0:01:28.5]} 30. g4 {[%clk 0:00:54.2]}
30... b4 {[%clk 0:01:27.8]} 31. Rxa5 {[%clk 0:00:52.6]} 31... bxa3 {[%clk
0:01:23.4]} 32. Rdxa3 {[%clk 0:00:51.9]} 32... Rh2 {[%clk 0:01:17.9]} 33. Ra8
{[%clk 0:00:48.6]} 33... Kf8 {[%clk 0:01:04.3]} 34. Rxe8+ {[%clk 0:00:43.5]}
34... Kxe8 {[%clk 0:01:05.2]} 35. Ra8+ {[%clk 0:00:43.2]} 35... Ke7 {[%clk
0:01:05.4]} 36. Ra7+ {[%clk 0:00:44.1]} 36... Ke8 {[%clk 0:01:05.7]} 37. h5
{[%clk 0:00:42.7]} 37... Rh1 {[%clk 0:00:59.5]} 38. Ra8+ {[%clk 0:00:39.3]}
38... Ke7 {[%clk 0:00:59]} 39. Rg8 {[%clk 0:00:38.9]} 39... Re1 {[%clk
0:00:47.6]} 40. Rxg7 {[%clk 0:00:38.7]} 40... Rxe5 {[%clk 0:00:47.2]} 41. Rh7
{[%clk 0:00:38.8]} 41... Kf6 {[%clk 0:00:40]} 42. Rxh6+ {[%clk 0:00:37.7]} 42...
Kg5 {[%clk 0:00:40.4]} 43. Rh8 {[%clk 0:00:37.7]} 43... Ra5 {[%clk 0:00:40.5]}
44. Rg8+ {[%clk 0:00:37.6]} 44... Kh6 {[%clk 0:00:37.6]} 45. Kg3 {[%clk
0:00:36.6]} 45... Ra1 {[%clk 0:00:35.6]} 46. Rh8+ {[%clk 0:00:28]} 46... Kg5
{[%clk 0:00:34.7]} 47. Rg8+ {[%clk 0:00:28.2]} 47... Kh6 {[%clk 0:00:34.7]} 48.
Kf4 {[%clk 0:00:27]} 48... Ra4+ {[%clk 0:00:26.6]} 49. Ke5 {[%clk 0:00:21.7]}
49... Ra6 {[%clk 0:00:25.2]} 50. f6 {[%clk 0:00:16.4]} 50... Ra1 {[%clk
0:00:04]} 51. Rg7 {[%clk 0:00:13.6]} 1-0

[Event "Late-Titled-Tuesday-Blitz-May-14-2024"]
[Site "Chess.com"]
[Date "2024.05.14"]
[Round "9"]
[White "Aygehovit1992"]
[Black "karinachess1"]
[Result "1-0"]
[WhiteElo "2837"]
[BlackElo "2624"]
[TimeControl "180+1"]
[EndTime "15:43:56 PDT"]
[Termination "Aygehovit1992 won by resignation"]

1. e4 {[%clk 0:03:00.9]} 1... e5 {[%clk 0:03:00.3]} 2. Nf3 {[%clk 0:03:01.2]}
2... Nc6 {[%clk 0:03:00.6]} 3. Bb5 {[%clk 0:03:01.9]} 3... Nf6 {[%clk 0:03:00]}
4. O-O {[%clk 0:03:02.2]} 4... Nxe4 {[%clk 0:02:59.7]} 5. d4 {[%clk 0:03:02.4]}
5... Nd6 {[%clk 0:02:59.5]} 6. Bxc6 {[%clk 0:03:03.1]} 6... dxc6 {[%clk
0:03:00.4]} 7. dxe5 {[%clk 0:03:03.7]} 7... Nf5 {[%clk 0:03:01.2]} 8. Qxd8+
{[%clk 0:03:04.2]} 8... Kxd8 {[%clk 0:03:02.1]} 9. h3 {[%clk 0:03:04.9]} 9...
Be7 {[%clk 0:03:01.9]} 10. Nc3 {[%clk 0:03:04.1]} 10... Be6 {[%clk 0:02:58.4]}
11. Rd1+ {[%clk 0:03:02.5]} 11... Ke8 {[%clk 0:02:58.2]} 12. b3 {[%clk
0:02:49.1]} 12... h6 {[%clk 0:02:54]} 13. Bb2 {[%clk 0:02:47.5]} 13... a5 {[%clk
0:02:50.3]} 14. a4 {[%clk 0:02:47.2]} 14... Rd8 {[%clk 0:02:43.3]} 15. Ne2
{[%clk 0:02:43.6]} 15... Bd5 {[%clk 0:02:35.9]} 16. Nfd4 {[%clk 0:02:06.2]}
16... Nxd4 {[%clk 0:02:31.7]} 17. Nxd4 {[%clk 0:02:04.5]} 17... Be4 {[%clk
0:01:56.5]} 18. Re1 {[%clk 0:01:48.2]} 18... Bg6 {[%clk 0:01:55.3]} 19. e6
{[%clk 0:01:46.2]} 19... Bb4 {[%clk 0:01:53.1]} 20. Re2 {[%clk 0:01:31.6]} 20...
Ke7 {[%clk 0:01:27.8]} 21. g4 {[%clk 0:01:25.7]} 21... f6 {[%clk 0:01:08.1]} 22.
Kg2 {[%clk 0:01:17.6]} 22... h5 {[%clk 0:01:03.8]} 23. f3 {[%clk 0:00:32.1]}
23... Rd5 {[%clk 0:00:55.3]} 24. c4 {[%clk 0:00:27.5]} 24... Rd6 {[%clk
0:00:55.2]} 25. f4 {[%clk 0:00:14.3]} 25... Bc5 {[%clk 0:00:40]} 26. Nf5+ {[%clk
0:00:10.7]} 26... Bxf5 {[%clk 0:00:40]} 27. gxf5 {[%clk 0:00:11.6]} 27... Rd3
{[%clk 0:00:36.6]} 28. Rf1 {[%clk 0:00:10]} 28... Rxb3 {[%clk 0:00:32.9]} 29.
Rf3 {[%clk 0:00:10.1]} 29... Rxf3 {[%clk 0:00:25.8]} 30. Kxf3 {[%clk 0:00:11]}
30... Rd8 {[%clk 0:00:26.3]} 31. Rg2 {[%clk 0:00:09]} 31... Kf8 {[%clk
0:00:17.1]} 32. Ke4 {[%clk 0:00:07.6]} 32... b6 {[%clk 0:00:13.3]} 33. Bc3
{[%clk 0:00:05.9]} 33... Rd1 {[%clk 0:00:12.7]} 34. Rd2 {[%clk 0:00:04.6]} 34...
Re1+ {[%clk 0:00:07.8]} 35. Kd3 {[%clk 0:00:04.7]} 35... Re3+ {[%clk 0:00:08.2]}
36. Kc2 {[%clk 0:00:03.9]} 36... Rxc3+ {[%clk 0:00:08.1]} 37. Kxc3 {[%clk
0:00:04.1]} 37... Bb4+ {[%clk 0:00:09]} 38. Kd3 {[%clk 0:00:04.2]} 38... Bxd2
{[%clk 0:00:09.9]} 39. Kxd2 {[%clk 0:00:05.1]} 39... Ke7 {[%clk 0:00:08.9]} 40.
Kc3 {[%clk 0:00:03.5]} 40... Kd6 {[%clk 0:00:08.7]} 41. Kd4 {[%clk 0:00:03.4]}
41... c5+ {[%clk 0:00:05.4]} 42. Ke4 {[%clk 0:00:02.9]} 42... c6 {[%clk
0:00:05.1]} 43. Kf3 {[%clk 0:00:02.2]} 43... Ke7 {[%clk 0:00:04.4]} 44. Kg3
{[%clk 0:00:02]} 44... Kd6 {[%clk 0:00:04.5]} 45. Kh4 {[%clk 0:00:02.4]} 45...
b5 {[%clk 0:00:04.5]} 46. cxb5 {[%clk 0:00:03]} 46... cxb5 {[%clk 0:00:04.9]}
47. axb5 {[%clk 0:00:03.1]} 47... c4 {[%clk 0:00:05.4]} 48. b6 {[%clk
0:00:03.5]} 48... c3 {[%clk 0:00:05.2]} 49. b7 {[%clk 0:00:04]} 49... Kc7 {[%clk
0:00:05.8]} 50. e7 {[%clk 0:00:04.5]} 50... c2 {[%clk 0:00:05.1]} 51. b8=Q+
{[%clk 0:00:04.5]} 51... Kxb8 {[%clk 0:00:05.5]} 52. e8=Q+ {[%clk 0:00:05]}
52... Kb7 {[%clk 0:00:06.4]} 53. Qd7+ {[%clk 0:00:04.8]} 53... Kb6 {[%clk
0:00:07]} 54. Qd2 {[%clk 0:00:05.5]} 1-0

[Event "Late-Titled-Tuesday-Blitz-May-14-2024"]
[Site "Chess.com"]
[Date "2024.05.14"]
[Round "9"]
[White "MatthewG-p4p"]
[Black "Flawless_Fighter"]
[Result "1-0"]
[WhiteElo "2842"]
[BlackElo "2688"]
[TimeControl "180+1"]
[EndTime "15:43:57 PDT"]
[Termination "MatthewG-p4p won by resignation"]

1. e4 {[%clk 0:03:00.9]} 1... c6 {[%clk 0:02:58.9]} 2. d4 {[%clk 0:03:00.9]}
2... d5 {[%clk 0:02:59.8]} 3. exd5 {[%clk 0:03:01.6]} 3... cxd5 {[%clk
0:02:58.3]} 4. Bd3 {[%clk 0:03:01.9]} 4... Nc6 {[%clk 0:02:57.2]} 5. c3 {[%clk
0:03:01.8]} 5... Nf6 {[%clk 0:02:54.6]} 6. h3 {[%clk 0:03:02]} 6... e5 {[%clk
0:02:53.8]} 7. dxe5 {[%clk 0:03:02]} 7... Nxe5 {[%clk 0:02:54.7]} 8. Qe2 {[%clk
0:03:02.8]} 8... Qe7 {[%clk 0:02:52.2]} 9. Bc2 {[%clk 0:03:03.1]} 9... g6 {[%clk
0:02:36]} 10. Bf4 {[%clk 0:03:02]} 10... Nfd7 {[%clk 0:02:35.3]} 11. Nd2 {[%clk
0:02:58]} 11... Bg7 {[%clk 0:02:35]} 12. Ngf3 {[%clk 0:02:55.7]} 12... O-O
{[%clk 0:02:34.3]} 13. O-O-O {[%clk 0:02:52.9]} 13... Qf6 {[%clk 0:02:17.4]} 14.
Be3 {[%clk 0:02:45.1]} 14... Nc6 {[%clk 0:02:05.2]} 15. Nb3 {[%clk 0:02:41.7]}
15... Nb6 {[%clk 0:02:04.6]} 16. Bc5 {[%clk 0:02:38.6]} 16... Rd8 {[%clk
0:02:00]} 17. Nbd4 {[%clk 0:02:37.7]} 17... Bd7 {[%clk 0:01:48.8]} 18. Nxc6
{[%clk 0:02:33.2]} 18... bxc6 {[%clk 0:01:44.5]} 19. Bd4 {[%clk 0:02:26.6]}
19... Qf4+ {[%clk 0:01:41.4]} 20. Kb1 {[%clk 0:02:26.9]} 20... Rab8 {[%clk
0:01:35.8]} 21. Bxg7 {[%clk 0:02:25.4]} 21... Kxg7 {[%clk 0:01:36.7]} 22. Qe5+
{[%clk 0:02:24.5]} 22... Qxe5 {[%clk 0:01:36]} 23. Nxe5 {[%clk 0:02:25.4]} 23...
f6 {[%clk 0:01:31.4]} 24. Nf3 {[%clk 0:02:18.8]} 24... Nc4 {[%clk 0:01:29.5]}
25. b3 {[%clk 0:02:18.9]} 25... Na3+ {[%clk 0:01:27.6]} 26. Kb2 {[%clk
0:02:19.3]} 26... Nxc2 {[%clk 0:01:26.9]} 27. Kxc2 {[%clk 0:02:20.2]} 27... Bf5+
{[%clk 0:01:26.4]} 28. Kb2 {[%clk 0:02:20.4]} 28... c5 {[%clk 0:01:26.8]} 29.
Rhe1 {[%clk 0:02:04.5]} 29... Rb7 {[%clk 0:01:21.6]} 30. c4 {[%clk 0:02:00.8]}
30... d4 {[%clk 0:01:20.7]} 31. g4 {[%clk 0:01:56.5]} 31... Bc8 {[%clk
0:01:20.2]} 32. Nd2 {[%clk 0:01:55.3]} 32... f5 {[%clk 0:01:14]} 33. g5 {[%clk
0:01:55.7]} 33... Kf7 {[%clk 0:01:10.8]} 34. Re5 {[%clk 0:01:55.7]} 34... Rc7
{[%clk 0:01:07.4]} 35. Rde1 {[%clk 0:01:54.3]} 35... Rd6 {[%clk 0:01:02.7]} 36.
Re8 {[%clk 0:01:52.1]} 36... Bb7 {[%clk 0:00:53]} 37. Rh8 {[%clk 0:01:46.2]}
37... Kg7 {[%clk 0:00:51]} 38. Ree8 {[%clk 0:01:46.9]} 38... h5 {[%clk
0:00:37.3]} 39. gxh6+ {[%clk 0:01:42.1]} 39... Kf6 {[%clk 0:00:37.2]} 40. h7
{[%clk 0:01:38]} 40... Kg5 {[%clk 0:00:33.1]} 41. Re5 {[%clk 0:01:10.3]} 41...
Rdd7 {[%clk 0:00:32]} 42. a3 {[%clk 0:00:52.2]} 42... Rxh7 {[%clk 0:00:26.6]}
43. Rxc5 {[%clk 0:00:44.7]} 43... Bg2 {[%clk 0:00:20.7]} 44. Rxc7 {[%clk
0:00:42.4]} 44... Rxc7 {[%clk 0:00:17.1]} 45. Rd8 {[%clk 0:00:40.6]} 45... Bxh3
{[%clk 0:00:13.4]} 46. Rxd4 {[%clk 0:00:41.3]} 46... Re7 {[%clk 0:00:12.2]} 47.
f4+ {[%clk 0:00:37.6]} 47... Kg4 {[%clk 0:00:11.8]} 48. c5 {[%clk 0:00:38.3]}
48... Bg2 {[%clk 0:00:10.3]} 49. b4 {[%clk 0:00:37.7]} 49... Be4 {[%clk
0:00:10]} 50. b5 {[%clk 0:00:30.3]} 50... Kxf4 {[%clk 0:00:08.8]} 51. c6 {[%clk
0:00:31]} 51... Ke3 {[%clk 0:00:09.4]} 52. Rd7 {[%clk 0:00:30.7]} 52... Re5
{[%clk 0:00:08.5]} 53. Nc4+ {[%clk 0:00:30.8]} 53... Kf4 {[%clk 0:00:08.4]} 54.
Nxe5 {[%clk 0:00:31.7]} 54... Kxe5 {[%clk 0:00:08.8]} 55. c7 {[%clk 0:00:32.6]}
55... Bb7 {[%clk 0:00:08.3]} 56. Rd8 {[%clk 0:00:29.1]} 56... f4 {[%clk
0:00:08.3]} 57. Rb8 {[%clk 0:00:26.9]} 57... f3 {[%clk 0:00:06.9]} 58. Rxb7
{[%clk 0:00:27.4]} 58... f2 {[%clk 0:00:07.6]} 59. c8=Q {[%clk 0:00:28.3]} 59...
f1=Q {[%clk 0:00:08.4]} 60. Re7+ {[%clk 0:00:28.3]} 60... Kd4 {[%clk 0:00:06.5]}
61. Rd7+ {[%clk 0:00:27]} 61... Ke3 {[%clk 0:00:05.9]} 62. Qe8+ {[%clk
0:00:27.6]} 62... Kf2 {[%clk 0:00:06]} 63. Rf7+ {[%clk 0:00:28.5]} 1-0

[Event "Late-Titled-Tuesday-Blitz-May-14-2024"]
[Site "Chess.com"]
[Date "2024.05.14"]
[Round "9"]
[White "deathadder96"]
[Black "WPWPWP-2015"]
[Result "0-1"]
[WhiteElo "2847"]
[BlackElo "2473"]
[TimeControl "180+1"]
[EndTime "15:44:00 PDT"]
[Termination "WPWPWP-2015 won by resignation"]

1. e4 {[%clk 0:03:00]} 1... e5 {[%clk 0:02:50.8]} 2. Nf3 {[%clk 0:02:53.3]} 2...
Nc6 {[%clk 0:02:46.6]} 3. d4 {[%clk 0:02:53.7]} 3... exd4 {[%clk 0:02:46.1]} 4.
Nxd4 {[%clk 0:02:54.6]} 4... Nf6 {[%clk 0:02:45.3]} 5. Nxc6 {[%clk 0:02:52.7]}
5... bxc6 {[%clk 0:02:44.8]} 6. Nd2 {[%clk 0:02:52.9]} 6... Bc5 {[%clk
0:02:41.4]} 7. e5 {[%clk 0:02:53]} 7... Qe7 {[%clk 0:02:34.2]} 8. Qe2 {[%clk
0:02:52.6]} 8... Nd5 {[%clk 0:02:29.7]} 9. Nb3 {[%clk 0:02:52.8]} 9... Bb6
{[%clk 0:02:28.7]} 10. c4 {[%clk 0:02:50.6]} 10... Nb4 {[%clk 0:02:25.8]} 11. h4
{[%clk 0:02:27.6]} 11... h6 {[%clk 0:02:15.7]} 12. Rh3 {[%clk 0:02:25.6]} 12...
d6 {[%clk 0:01:55.4]} 13. Rc3 {[%clk 0:02:24.9]} 13... Be6 {[%clk 0:01:09.5]}
14. g3 {[%clk 0:02:10.8]} 14... O-O {[%clk 0:01:07]} 15. Bg2 {[%clk 0:02:10.2]}
15... Rad8 {[%clk 0:00:54.5]} 16. Bd2 {[%clk 0:02:04.2]} 16... dxe5 {[%clk
0:00:32.8]} 17. a3 {[%clk 0:01:31.3]} 17... Na6 {[%clk 0:00:24.5]} 18. Bxc6
{[%clk 0:01:26.6]} 18... Bd4 {[%clk 0:00:22.5]} 19. Nxd4 {[%clk 0:01:25.1]}
19... exd4 {[%clk 0:00:23.4]} 20. Rcc1 {[%clk 0:01:16]} 20... Nc5 {[%clk
0:00:22.8]} 21. Bb4 {[%clk 0:01:13.7]} 21... a5 {[%clk 0:00:22.5]} 22. Bxa5
{[%clk 0:01:10.9]} 22... d3 {[%clk 0:00:21.5]} 23. Qe3 {[%clk 0:01:11]} 23...
Nb3 {[%clk 0:00:19.6]} 24. Bd2 {[%clk 0:01:10.3]} 24... Qf6 {[%clk 0:00:13.1]}
25. Bc3 {[%clk 0:00:59.1]} 25... d2+ {[%clk 0:00:12.9]} 26. Qxd2 {[%clk
0:00:58.5]} 26... Rxd2 {[%clk 0:00:06.5]} 27. Bxf6 {[%clk 0:00:58.5]} 27... gxf6
{[%clk 0:00:07.1]} 28. Ba4 {[%clk 0:00:57.7]} 28... Rxb2 {[%clk 0:00:04.5]} 29.
Rab1 {[%clk 0:00:56.5]} 29... Rxb1 {[%clk 0:00:04.5]} 30. Rxb1 {[%clk
0:00:57.4]} 30... Nc5 {[%clk 0:00:05.1]} 31. Bc2 {[%clk 0:00:55.2]} 31... Bxc4
{[%clk 0:00:03.8]} 32. Kd2 {[%clk 0:00:54.8]} 32... Rd8+ {[%clk 0:00:03.8]} 33.
Kc3 {[%clk 0:00:54.8]} 33... Ba6 {[%clk 0:00:03.7]} 34. Rb4 {[%clk 0:00:54.3]}
34... Ne6 {[%clk 0:00:03.5]} 35. Ra4 {[%clk 0:00:51.9]} 35... Bb7 {[%clk
0:00:03.8]} 36. Ra7 {[%clk 0:00:49.5]} 36... Rb8 {[%clk 0:00:03.8]} 37. a4
{[%clk 0:00:48.3]} 37... Kf8 {[%clk 0:00:04.2]} 38. a5 {[%clk 0:00:48.6]} 38...
Ke7 {[%clk 0:00:04.7]} 39. a6 {[%clk 0:00:46.7]} 39... Bf3 {[%clk 0:00:05.3]}
40. Bb3 {[%clk 0:00:46.9]} 40... Kd6 {[%clk 0:00:05.6]} 41. Bc4 {[%clk
0:00:44.9]} 41... h5 {[%clk 0:00:05.5]} 42. Kd2 {[%clk 0:00:44.6]} 42... Bc6
{[%clk 0:00:05.6]} 43. Ke3 {[%clk 0:00:44.5]} 43... Rd8 {[%clk 0:00:05.9]} 44.
f4 {[%clk 0:00:42.6]} 44... Rg8 {[%clk 0:00:05.8]} 45. Kf2 {[%clk 0:00:42.5]}
45... Rf8 {[%clk 0:00:05.8]} 46. Be2 {[%clk 0:00:42.7]} 46... Nd4 {[%clk
0:00:06]} 47. Bxh5 {[%clk 0:00:42.6]} 47... Nb5 {[%clk 0:00:06.2]} 48. Rb7
{[%clk 0:00:42.2]} 48... Bxb7 {[%clk 0:00:06.6]} 49. axb7 {[%clk 0:00:43.1]}
49... Rb8 {[%clk 0:00:06.8]} 50. Bf3 {[%clk 0:00:42.7]} 50... Nd4 {[%clk
0:00:06.9]} 51. Be4 {[%clk 0:00:42.8]} 51... c6 {[%clk 0:00:07.1]} 52. Ke3
{[%clk 0:00:43.3]} 52... Kc5 {[%clk 0:00:07.3]} 53. h5 {[%clk 0:00:42.3]} 53...
f5 {[%clk 0:00:07.4]} 54. h6 {[%clk 0:00:43.2]} 54... fxe4 {[%clk 0:00:07.1]}
55. Kxe4 {[%clk 0:00:43.9]} 55... Rxb7 {[%clk 0:00:07]} 56. Ke5 {[%clk
0:00:42.9]} 56... Rb8 {[%clk 0:00:06.7]} 57. Kf6 {[%clk 0:00:42.8]} 57... Kd6
{[%clk 0:00:06.5]} 58. g4 {[%clk 0:00:43]} 58... c5 {[%clk 0:00:06.1]} 59. g5
{[%clk 0:00:43.2]} 59... c4 {[%clk 0:00:06.4]} 60. f5 {[%clk 0:00:43.5]} 60...
Nxf5 {[%clk 0:00:06.2]} 61. g6 {[%clk 0:00:44.4]} 61... fxg6 {[%clk 0:00:06]}
62. h7 {[%clk 0:00:44]} 62... c3 {[%clk 0:00:06]} 63. Kf7 {[%clk 0:00:44.6]}
63... c2 {[%clk 0:00:05.6]} 64. h8=Q {[%clk 0:00:45.3]} 64... Rxh8 {[%clk
0:00:05.1]} 65. Kf6 {[%clk 0:00:46.2]} 65... Re8 {[%clk 0:00:05.1]} 66. Kf7
{[%clk 0:00:47.1]} 66... Re7+ {[%clk 0:00:05.3]} 67. Kg8 {[%clk 0:00:47.3]}
67... Rd7 {[%clk 0:00:05.1]} 68. Kf8 {[%clk 0:00:46.8]} 68... c1=R {[%clk
0:00:04.5]} 0-1

[Event "Late-Titled-Tuesday-Blitz-May-14-2024"]
[Site "Chess.com"]
[Date "2024.05.14"]
[Round "9"]
[White "Msb2"]
[Black "MITerryble"]
[Result "0-1"]
[WhiteElo "3072"]
[BlackElo "3026"]
[TimeControl "180+1"]
[EndTime "15:44:03 PDT"]
[Termination "MITerryble won by checkmate"]

1. d4 {[%clk 0:03:00.9]} 1... d5 {[%clk 0:03:00.5]} 2. c4 {[%clk 0:03:01]} 2...
dxc4 {[%clk 0:03:01.4]} 3. e4 {[%clk 0:02:59]} 3... e5 {[%clk 0:03:01.6]} 4. Nf3
{[%clk 0:02:59.7]} 4... exd4 {[%clk 0:03:01.3]} 5. Bxc4 {[%clk 0:03:00.4]} 5...
Nc6 {[%clk 0:03:01.4]} 6. O-O {[%clk 0:03:00.7]} 6... Be6 {[%clk 0:03:01.6]} 7.
Nbd2 {[%clk 0:03:01.1]} 7... Nf6 {[%clk 0:03:01.9]} 8. Qb3 {[%clk 0:02:58.9]}
8... Qd7 {[%clk 0:03:01.9]} 9. Qxb7 {[%clk 0:02:55.8]} 9... Rb8 {[%clk
0:03:01.6]} 10. Qa6 {[%clk 0:02:55.8]} 10... Bd6 {[%clk 0:02:56.6]} 11. a3
{[%clk 0:02:51.9]} 11... O-O {[%clk 0:02:50.7]} 12. Qa4 {[%clk 0:02:41]} 12...
Bxc4 {[%clk 0:02:33]} 13. Qxc4 {[%clk 0:02:41.9]} 13... Rbe8 {[%clk 0:02:20]}
14. Re1 {[%clk 0:02:38.6]} 14... Ng4 {[%clk 0:02:19.3]} 15. h3 {[%clk 0:02:30]}
15... Nge5 {[%clk 0:02:19.5]} 16. Nxe5 {[%clk 0:02:30.5]} 16... Nxe5 {[%clk
0:02:20.4]} 17. Qb3 {[%clk 0:02:02.2]} 17... Rb8 {[%clk 0:02:07.8]} 18. Qc2
{[%clk 0:01:46.5]} 18... Qb5 {[%clk 0:02:01.7]} 19. b4 {[%clk 0:01:29]} 19... a5
{[%clk 0:01:51.8]} 20. Bb2 {[%clk 0:01:11.2]} 20... Nd3 {[%clk 0:01:34]} 21.
Reb1 {[%clk 0:01:07]} 21... Nxb2 {[%clk 0:01:08.8]} 22. Qxb2 {[%clk 0:01:01.2]}
22... axb4 {[%clk 0:01:06.8]} 23. axb4 {[%clk 0:01:01.8]} 23... Qxb4 {[%clk
0:01:03.6]} 24. Qxb4 {[%clk 0:00:44.9]} 24... Bxb4 {[%clk 0:01:04.5]} 25. Nc4
{[%clk 0:00:41.1]} 25... c5 {[%clk 0:00:59]} 26. g3 {[%clk 0:00:35.5]} 26...
Rfe8 {[%clk 0:00:51.7]} 27. e5 {[%clk 0:00:34]} 27... Rbd8 {[%clk 0:00:46.1]}
28. Ra7 {[%clk 0:00:32.1]} 28... f6 {[%clk 0:00:37.4]} 29. f4 {[%clk 0:00:22.7]}
29... fxe5 {[%clk 0:00:35.6]} 30. fxe5 {[%clk 0:00:23.6]} 30... d3 {[%clk
0:00:34.4]} 31. Rd1 {[%clk 0:00:23]} 31... d2 {[%clk 0:00:30]} 32. Kf2 {[%clk
0:00:19.8]} 32... h6 {[%clk 0:00:22.4]} 33. Ra2 {[%clk 0:00:16.1]} 33... Rd4
{[%clk 0:00:20.6]} 34. Nxd2 {[%clk 0:00:16.7]} 34... Red8 {[%clk 0:00:11.3]} 35.
Ke2 {[%clk 0:00:17.1]} 35... c4 {[%clk 0:00:06]} 36. e6 {[%clk 0:00:02.7]} 36...
c3 {[%clk 0:00:06]} 37. e7 {[%clk 0:00:03.6]} 37... Bxe7 {[%clk 0:00:05.9]} 38.
Ra7 {[%clk 0:00:02.4]} 38... Rxd2+ {[%clk 0:00:05.1]} 39. Rxd2 {[%clk
0:00:03.1]} 39... Rxd2+ {[%clk 0:00:05.3]} 40. Kf3 {[%clk 0:00:03.4]} 40... Bf6
{[%clk 0:00:05.7]} 41. Rc7 {[%clk 0:00:03.5]} 41... Rd3+ {[%clk 0:00:04.6]} 42.
Kg4 {[%clk 0:00:04]} 42... Rxg3+ {[%clk 0:00:03.6]} 43. Kf5 {[%clk 0:00:04.7]}
43... Rg5+ {[%clk 0:00:03.4]} 44. Ke6 {[%clk 0:00:04.7]} 44... Kh7 {[%clk
0:00:04]} 45. h4 {[%clk 0:00:04.9]} 45... Re5+ {[%clk 0:00:04.1]} 46. Kd6 {[%clk
0:00:04.6]} 46... Re3 {[%clk 0:00:03.7]} 47. Kd5 {[%clk 0:00:04.4]} 47... Re5+
{[%clk 0:00:03.6]} 48. Kd6 {[%clk 0:00:04.7]} 48... Rh5 {[%clk 0:00:04.5]} 49.
Ke6 {[%clk 0:00:04.1]} 49... Rxh4 {[%clk 0:00:04.9]} 50. Kf7 {[%clk 0:00:04.8]}
50... Re4 {[%clk 0:00:04.5]} 51. Rc8 {[%clk 0:00:03.1]} 51... Re7+ {[%clk
0:00:04]} 52. Kf8 {[%clk 0:00:03.7]} 52... Kg6 {[%clk 0:00:03.7]} 53. Rc4 {[%clk
0:00:02.4]} 53... Ra7 {[%clk 0:00:03.8]} 54. Rg4+ {[%clk 0:00:02.3]} 54... Bg5
{[%clk 0:00:04.1]} 55. Rc4 {[%clk 0:00:03]} 55... Ra8+ {[%clk 0:00:04.3]} 56.
Rc8 {[%clk 0:00:03.9]} 56... Rxc8# {[%clk 0:00:04.6]} 0-1